fUSD/lending_fUSD_20260428
["ID","MTS","AMOUNT","RATE_DAILY","PERIOD"]
[421292812,1777372173088,-299.268,8.119e-05,2]
[421292813,1777372173109,-62.69739166,8.219e-05,2]
[421292814,1777372203140,264.7963,8.019e-05,2]
[421292815,1777372232521,-217.30260834,8.219e-05,2]
[421292816,1777372232531,-54.82091478,8.931e-05,2]
[421292817,1777372232542,-195.17908522,8.931e-05,2]
[421292818,1777372232552,-250.0,8.931e-05,2]
[421292819,1777372232561,-283.64301512,9.041e-05,2]
[421292820,1777372232570,-153.65430764,9.518e-05,2]
[421292821,1777372232580,-77.21153543,9.518e-05,2]
[421292822,1777372232591,-72.78846457,9.518e-05,2]
[421292823,1777372232601,-150.0,9.518e-05,2]
[421292824,1777372232610,-150.0,9.518e-05,2]
[421292825,1777372232619,-150.0,9.518e-05,2]
[421292826,1777372232628,-3116.422087,0.00010015,2]
[421292827,1777372232638,-1200.0,0.00010066,2]
[421292828,1777372232647,-197.48,0.00010067,2]
[421292829,1777372232656,-419.0,0.000102,2]
[421292830,1777372232666,-250.0,0.00010243,2]
[421292831,1777372232675,-857851.98048667,0.000104,2]
[421292832,1777372232686,-3878.1223736,0.000104,2]
[421292833,1777372232697,-5601.10756157,0.000104,2]
[421292838,1777372237628,-259.10820651,0.00010399,2]
[421292839,1777372237638,-625.28022236,0.000104,2]
[421292840,1777372237791,-1916.66577274,0.000104,2]
[421292841,1777372237904,-4735.40854725,0.000104,2]
[421292842,1777372237916,-5691.908,0.000104,2]
[421292848,1777372239744,-192.02607944,0.00010399,2]
[421292849,1777372239754,-515.12428694,0.00010399,2]
[421292850,1777372239763,-500.0,0.00010399,2]
[421292851,1777372239773,-500.0,0.00010399,2]
[421292852,1777372239783,-179.11557267,0.00010399,2]
[421292853,1777372239792,-604.8311971,0.00010399,2]
[421292854,1777372239802,-75058.38511795,0.000104,2]
[421292855,1777372239814,-1735.27915185,0.000104,2]
[421292856,1777372239825,-3532.0,0.000104,2]
[421292857,1777372239837,-1525.26389508,0.000104,2]
[421292873,1777372242630,-1337.71693204,0.000104,2]
[421292877,1777372245688,-2495.02592623,0.000104,2]
[421292878,1777372245748,-8405.88648049,0.000104,2]
[421292879,1777372245763,-843.199996,0.000104,2]
[421292880,1777372245857,-258.166998,0.000104,2]
[421292881,1777372245869,-894.91738156,0.000104,2]
[421292981,1777372344872,351.9043,8.019e-05,2]
[421292982,1777372387839,448.0,8.019e-05,3]
[421292983,1777372388060,448.0,8.755e-05,3]
[421292984,1777372447888,403.0,8.755e-05,3]
[421292985,1777372507424,383.0,8.755e-05,3]
[421292986,1777372512129,161.0,8.755e-05,3]
[421292987,1777372568554,364.0,8.755e-05,3]
[421292988,1777372629246,345.0,8.755e-05,3]
[421292989,1777372689294,328.0,8.755e-05,3]
[421292990,1777372748623,312.0,8.755e-05,3]
[421292991,1777372811113,161.0,8.755e-05,3]
[421292992,1777372812536,296.0,8.755e-05,3]
[421292993,1777372866659,281.0,8.755e-05,3]
[421292994,1777372928365,267.0,8.755e-05,3]
[421292995,1777372985589,254.0,8.755e-05,3]
[421293010,1777373046202,241.0,8.755e-05,3]
[421293011,1777373107190,229.0,8.755e-05,3]
[421293012,1777373107394,161.0,8.755e-05,3]
[421293013,1777373175369,218.0,8.755e-05,3]
[421293014,1777373233162,207.0,8.755e-05,3]
[421293018,1777373289299,197.0,8.755e-05,3]
[421293047,1777373348707,187.0,8.755e-05,3]
[421293048,1777373411158,177.0,8.755e-05,3]
[421293049,1777373413570,161.0,8.755e-05,3]
[421293051,1777373431615,-280.0,8.219e-05,2]
[421293052,1777373431624,-964.95933517,9.031e-05,2]
[421293053,1777373431633,-1200.0,9.04e-05,2]
[421293054,1777373431646,-300.0,9.04e-05,2]
[421293055,1777373431655,-262.0,9.04e-05,2]
[421293056,1777373431665,-300.0,9.041e-05,2]
[421293057,1777373431674,-193.0,9.041e-05,2]
[421293058,1777373431684,-188.33976483,9.041e-05,2]
[421293059,1777373431696,-61.66023517,9.041e-05,2]
[421293060,1777373431706,-250.0,9.041e-05,2]
[421293061,1777373431715,-250.0,9.041e-05,2]
[421293062,1777373431725,-224.57524947,9.452e-05,2]
[421293063,1777373431735,-177.0,9.452e-05,3]
[421293064,1777373431744,-224.57524946,9.876e-05,2]
[421293065,1777373431754,-1680.0,9.944e-05,2]
[421293066,1777373431763,-177.0,0.00010149,3]
[421293067,1777373431773,-224.57524946,0.000102,2]
[421293068,1777373431782,-161.0,0.00010227,3]
[421293069,1777373431791,-150.0,0.00010299,2]
[421293070,1777373431800,-200.0,0.00010394,2]
[421293071,1777373431810,-624.98430607,0.00010395,2]
[421293072,1777373431819,-151.0,0.00010397,2]
[421293073,1777373431829,-3539.95138471,0.00010399,2]
[421293074,1777373431839,-13686.0217224,0.0001044,2]
[421293075,1777373431849,-3476.4385884,0.0001044,2]
[421293076,1777373431858,-1558.6042608,0.0001044,2]
[421293077,1777373431868,-662.8432866,0.0001044,2]
[421293078,1777373431880,-829.4524781,0.0001044,2]
[421293079,1777373431889,-371.0,0.00010468,2]
[421293080,1777373431898,-151.0,0.00010497,2]
[421293081,1777373431907,-1000.0,0.00010499,2]
[421293082,1777373431917,-755.77884342,0.000105,2]
[421293083,1777373431926,-1693.5466516,0.000105,2]
[421293084,1777373431935,-1807.5934056,0.000105,2]
[421293085,1777373431945,-2035.37516796,0.000105,2]
[421293086,1777373431954,-1864.46090975,0.000105,2]
[421293087,1777373431964,-1453.0,0.00010566,2]
[421293088,1777373431973,-602.0,0.00010587,2]
[421293089,1777373431982,-274.81,0.00010635,2]
[421293090,1777373431991,-150.0,0.000108,2]
[421293091,1777373432001,-150.0,0.000108,2]
[421293092,1777373432010,-150.0,0.000108,2]
[421293093,1777373432019,-150.0,0.000108,2]
[421293094,1777373432029,-150.0,0.000108,2]
[421293095,1777373432039,-177.0,0.00010846,3]
[421293098,1777373432047,-352.91611983,0.00010912,4]
[421293099,1777373432057,-2351.0,0.00010939,2]
[421293100,1777373432066,-201.69812677,0.00010942,2]
[421293101,1777373432075,-500.0,0.00010958,2]
[421293102,1777373432085,-500.0,0.00010959,2]
[421293103,1777373432094,-500.0,0.00010959,2]
[421293104,1777373432103,-150.0,0.0001104,2]
[421293105,1777373432112,-12799.1756988,0.00011099,2]
[421293106,1777373432122,-12799.17569879,0.00011099,2]
[421293107,1777373432131,-12799.17569879,0.00011099,2]
[421293108,1777373432141,-12799.17569879,0.00011099,2]
[421293109,1777373432151,-12799.17569879,0.00011099,2]
[421293110,1777373432160,-599.60298507,0.0001113,2]
[421293111,1777373432170,-151.0,0.0001113,2]
[421293112,1777373432180,-150.0,0.000112,2]
[421293113,1777373432189,-3132.62,0.00011205,2]
[421293114,1777373432199,-12799.17569879,0.00011207,2]
[421293115,1777373432208,-1350.0,0.00011237,2]
[421293116,1777373432217,-1266.0,0.00011237,2]
[421293117,1777373432226,-6035.0,0.00011237,2]
[421293118,1777373432236,-927.0,0.00011237,2]
[421293119,1777373432245,-150.0,0.0001128,2]
[421293120,1777373432254,-198.70828349,0.000113,2]
[421293121,1777373432263,-255.0,0.00011319,2]
[421293122,1777373432272,-500.0,0.00011352,2]
[421293123,1777373432282,-500.0,0.00011352,2]
[421293124,1777373432291,-350.0,0.00011352,2]
[421293125,1777373432300,-150.0,0.00011352,2]
[421293126,1777373432309,-150.0,0.00011352,2]
[421293127,1777373432318,-150.0,0.00011352,2]
[421293128,1777373432337,-200.0,0.00011352,2]
[421293129,1777373432348,-12799.17569879,0.0001138,2]
[421293130,1777373432357,-2244.62672426,0.000114,2]
[421293131,1777373432367,-150.0,0.000114,2]
[421293132,1777373432376,-8408.8756305,0.00011497,2]
[421293133,1777373432386,-2917.337,0.00011511,2]
[421293134,1777373432395,-182.774,0.00011511,2]
[421293135,1777373432405,-150.0,0.0001152,2]
[421293136,1777373432414,-177.0,0.00011543,3]
[421293137,1777373432424,-12799.17569879,0.00011553,2]
[421293138,1777373432433,-150.0,0.000116,2]
[421293139,1777373432442,-156.587,0.00011678,2]
[421293140,1777373432452,-161.0,0.00011698,3]
[421293141,1777373432461,-12799.17569879,0.00011727,2]
[421293142,1777373432470,-1211.0,0.00011733,5]
[421293143,1777373432480,-165.51949484,0.0001176,2]
[421293144,1777373432490,-150.0,0.0001176,2]
[421293145,1777373432499,-500.0,0.00011821,2]
[421293146,1777373432509,-3053.7642187,0.00011861,2]
[421293147,1777373432518,-2000.0,0.0001188,2]
[421293148,1777373432527,-2000.0,0.0001188,2]
[421293149,1777373432537,-5000.0,0.000119,2]
[421293150,1777373432546,-11479.14632263,0.000119,2]
[421293151,1777373432941,-1320.02937616,0.000119,2]
[421293152,1777373432950,-1198.75569288,0.000119,2]
[421293153,1777373432970,-716.51117773,0.000119,2]
[421293154,1777373432982,-933.29910589,0.000119,2]
[421293159,1777373438048,-152.0,0.00010393,7]
[421293160,1777373438058,-165.51949485,0.0001176,2]
[421293161,1777373438068,-182.48050515,0.000119,2]
[421293162,1777373438102,-788.45865194,0.000119,2]
[421293163,1777373438157,-4484.46767936,0.000119,2]
[421293164,1777373438168,-1531.58,0.000119,2]
[421293181,1777373440155,-5754.1454112,0.000119,2]
[421293182,1777373440405,-200.0,0.00011903,2]
[421293183,1777373440420,-200.0,0.00011904,2]
[421293184,1777373440430,-4025.39373262,0.00011906,2]
[421293185,1777373440442,-325.47403664,0.00011906,2]
[421293186,1777373440457,-811.25815889,0.00011906,2]
[421293192,1777373443420,-419.03576379,0.00011668,2]
[421293194,1777373445867,-500.64872106,0.00011668,2]
[421293195,1777373446394,-96.21831045,0.00011668,2]
[421293196,1777373446404,-1091.78984754,0.00011668,2]
[421293197,1777373446413,-1074.5856301,0.00011668,2]
[421293198,1777373446424,-886.27776491,0.00011906,2]
[421293199,1777373446553,-452.23135364,0.00011906,2]
[421293329,1777374448781,2695.0,0.0001,10]
[421293334,1777374631792,-280.0,8.219e-05,2]
[421293335,1777374631801,-237.6161635,9.041e-05,2]
[421293336,1777374631811,-220.3838365,9.041e-05,2]
[421293337,1777374631820,-21.87220332,9.041e-05,2]
[421293338,1777374631844,-228.12779668,9.041e-05,2]
[421293339,1777374631853,-150.0,9.173e-05,2]
[421293340,1777374631863,-150.0,9.173e-05,2]
[421293341,1777374631872,-143.96220332,9.173e-05,2]
[421293342,1777374631900,-6.03779668,9.173e-05,2]
[421293343,1777374631909,-154.62687471,9.173e-05,2]
[421293344,1777374631922,-1100.70748707,9.995e-05,2]
[421293345,1777374631934,-99.29251293,9.995e-05,2]
[421293346,1777374631943,-2784.9,9.996e-05,2]
[421293347,1777374631953,-183.831,9.996e-05,2]
[421293348,1777374631962,-3671.73001739,0.0001,2]
[421293349,1777374631974,-25487.10112668,0.0001,2]
[421293350,1777374631986,-155962.89055593,0.0001,2]
[421293351,1777374631995,-6786.3412,0.000101,2]
[421293352,1777374632005,-150.0,0.00010198,2]
[421293353,1777374632015,-425.16184594,0.00010199,2]
[421293354,1777374632024,-500.0,0.00010199,2]
[421293355,1777374632034,-500.0,0.00010199,2]
[421293356,1777374632043,-188.66094271,0.00010199,2]
[421293357,1777374632053,-471.22864715,0.00010199,2]
[421293358,1777374632062,-500.0,0.00010199,2]
[421293359,1777374632072,-491.34762848,0.00010199,2]
[421293360,1777374632081,-500.0,0.00010199,2]
[421293361,1777374632091,-500.0,0.00010199,2]
[421293362,1777374632101,-500.0,0.00010199,2]
[421293363,1777374632110,-500.0,0.00010199,2]
[421293364,1777374632120,-500.0,0.00010199,2]
[421293366,1777374632129,-500.0,0.00010199,2]
[421293368,1777374632140,-500.0,0.00010199,2]
[421293370,1777374632150,-500.0,0.00010199,2]
[421293372,1777374632163,-500.0,0.00010199,2]
[421293374,1777374632172,-500.0,0.00010199,2]
[421293376,1777374632182,-500.0,0.00010199,2]
[421293377,1777374632191,-500.0,0.00010199,2]
[421293379,1777374632201,-500.0,0.00010199,2]
[421293381,1777374632211,-500.0,0.00010199,2]
[421293383,1777374632221,-500.0,0.00010199,2]
[421293384,1777374632231,-500.0,0.00010199,2]
[421293385,1777374632240,-500.0,0.00010199,2]
[421293386,1777374632250,-500.0,0.00010199,2]
[421293387,1777374632260,-500.0,0.00010199,2]
[421293388,1777374632270,-500.0,0.00010199,2]
[421293389,1777374632279,-500.0,0.00010199,2]
[421293390,1777374632289,-500.0,0.00010199,2]
[421293391,1777374632298,-500.0,0.00010199,2]
[421293392,1777374632308,-500.0,0.00010199,2]
[421293393,1777374632317,-500.0,0.00010199,2]
[421293394,1777374632326,-500.0,0.00010199,2]
[421293395,1777374632335,-500.0,0.00010199,2]
[421293396,1777374632345,-500.0,0.00010199,2]
[421293397,1777374632354,-500.0,0.00010199,2]
[421293398,1777374632363,-500.0,0.00010199,2]
[421293399,1777374632373,-500.0,0.00010199,2]
[421293400,1777374632386,-339.45370088,0.00010199,2]
[421293401,1777374632395,-500.0,0.00010199,2]
[421293402,1777374632405,-500.0,0.00010199,2]
[421293403,1777374632414,-500.0,0.00010199,2]
[421293404,1777374632424,-500.0,0.00010199,2]
[421293405,1777374632433,-299.99999999,0.00010199,2]
[421293406,1777374632443,-500.0,0.00010199,2]
[421293407,1777374632452,-500.0,0.00010199,2]
[421293408,1777374632462,-500.0,0.00010199,2]
[421293409,1777374632471,-500.0,0.00010199,2]
[421293410,1777374632480,-500.0,0.00010199,2]
[421293411,1777374632490,-500.0,0.00010199,2]
[421293412,1777374632499,-500.0,0.00010199,2]
[421293413,1777374632509,-500.0,0.00010199,2]
[421293414,1777374632518,-500.0,0.00010199,2]
[421293415,1777374632528,-500.0,0.00010199,2]
[421293416,1777374632537,-222.76472754,0.00010199,2]
[421293417,1777374632547,-499.99999999,0.00010199,2]
[421293418,1777374632556,-500.0,0.00010199,2]
[421293419,1777374632566,-500.0,0.00010199,2]
[421293420,1777374632575,-500.0,0.00010199,2]
[421293421,1777374632584,-500.0,0.00010199,2]
[421293422,1777374632594,-500.0,0.00010199,2]
[421293423,1777374632603,-350.0,0.00010199,2]
[421293424,1777374632616,-500.0,0.00010199,2]
[421293425,1777374632625,-500.0,0.00010199,2]
[421293426,1777374632635,-500.0,0.00010199,2]
[421293427,1777374632644,-500.0,0.00010199,2]
[421293428,1777374632654,-500.0,0.00010199,2]
[421293429,1777374632663,-500.0,0.00010199,2]
[421293430,1777374632673,-500.0,0.00010199,2]
[421293431,1777374632683,-500.0,0.00010199,2]
[421293432,1777374632692,-251.7726285,0.00010199,2]
[421293433,1777374632702,-248.2273715,0.00010199,2]
[421293434,1777374632711,-350.0,0.00010199,2]
[421293435,1777374632721,-500.0,0.00010199,2]
[421293436,1777374632731,-500.0,0.00010199,2]
[421293437,1777374632740,-500.0,0.00010199,2]
[421293438,1777374632750,-500.0,0.00010199,2]
[421293439,1777374632759,-500.0,0.00010199,2]
[421293440,1777374632769,-500.0,0.00010199,2]
[421293441,1777374632778,-500.0,0.00010199,2]
[421293442,1777374632788,-500.0,0.00010199,2]
[421293443,1777374632797,-500.0,0.00010199,2]
[421293444,1777374632807,-500.0,0.00010199,2]
[421293445,1777374632818,-250.0,0.00010199,2]
[421293446,1777374632827,-45094.75920266,0.000102,2]
[421293447,1777374632841,-304548.02836143,0.000102,2]
[421293448,1777374632853,-1254.41808677,0.000102,2]
[421293449,1777374632864,-1643.28648699,0.000102,2]
[421293450,1777374632876,-1421.69894956,0.000102,2]
[421293451,1777374632888,-607.56498033,0.000102,2]
[421293452,1777374632899,-304.3518484,0.000102,2]
[421293453,1777374632911,-2114.8037051,0.000102,2]
[421293454,1777374632922,-841.00090197,0.000102,2]
[421293455,1777374632934,-555.92102686,0.000102,2]
[421293456,1777374632946,-391.88,0.000102,2]
[421293457,1777374632957,-255.83894739,0.000102,2]
[421293458,1777374638141,-314.99245391,0.000102,2]
[421293459,1777374638192,-305.153193,0.000102,2]
[421293460,1777374638204,-809.73291563,0.000102,2]
[421293461,1777374638216,-2890.96426327,0.000102,2]
[421293462,1777374638232,-2418.07525,0.000102,2]
[421293463,1777374638245,-20820.99609857,0.000102,2]
[421293464,1777374638258,-16630.24196015,0.000102,2]
[421293465,1777374638270,-672.41251758,0.000102,2]
[421293466,1777374638303,-326.39119431,0.000102,2]
[421293467,1777374638315,-7654.1,0.000102,2]
[421293473,1777374638670,-410.175902,0.000102,2]
[421293477,1777374640211,-1087713.21175412,0.000102,2]
[421293478,1777374640221,-500.0,0.00010673,2]
[421293479,1777374640230,-247.08896607,0.00010673,2]
[421293480,1777374640240,-500.0,0.00010673,2]
[421293481,1777374640250,-500.36342385,0.00010673,2]
[421293482,1777374640260,-500.0,0.00010673,2]
[421293483,1777374640269,-500.0,0.00010673,2]
[421293484,1777374640279,-610.94503595,0.00010673,2]
[421293485,1777374640288,-500.0,0.00010673,2]
[421293486,1777374640298,-500.0,0.00010673,2]
[421293487,1777374640308,-500.49808939,0.00010673,2]
[421293488,1777374640317,-185848.35186981,0.000107,2]
[421293489,1777374640327,-500.0,0.00010716,2]
[421293490,1777374640337,-500.0,0.00010958,2]
[421293491,1777374640346,-500.0,0.00010958,2]
[421293492,1777374640356,-500.0,0.00010958,2]
[421293493,1777374640365,-500.0,0.00010958,2]
[421293494,1777374640374,-500.0,0.00010958,2]
[421293495,1777374640384,-500.0,0.00010958,2]
[421293496,1777374640393,-500.0,0.00010958,2]
[421293497,1777374640403,-500.0,0.00010958,2]
[421293498,1777374640412,-500.0,0.00010958,2]
[421293499,1777374640421,-180.28776175,0.00010959,2]
[421293500,1777374640431,-1680.0,0.00010995,2]
[421293501,1777374640440,-500.0,0.00011038,2]
[421293502,1777374640449,-151.0,0.00011078,2]
[421293503,1777374640459,-307.46111372,0.00011078,2]
[421293504,1777374640468,-219.85,0.00011101,2]
[421293505,1777374640477,-291.24,0.00011134,2]
[421293506,1777374640486,-255.0,0.00011208,2]
[421293507,1777374640496,-1000.0,0.00011221,2]
[421293508,1777374640506,-1000.0,0.00011221,2]
[421293509,1777374640515,-1000.0,0.00011221,2]
[421293510,1777374640525,-1000.0,0.00011221,2]
[421293511,1777374640535,-1000.0,0.00011221,2]
[421293512,1777374640544,-1000.0,0.00011221,2]
[421293513,1777374640554,-500.0,0.00011369,2]
[421293514,1777374640564,-6035.0,0.00011388,2]
[421293515,1777374640573,-156.587,0.00011626,2]
[421293516,1777374640583,-1031.49503641,0.00011668,2]
[421293517,1777374640592,-1127.0159975,0.00011668,2]
[421293518,1777374640601,-1015.28606474,0.00011668,2]
[421293519,1777374640611,-1549.47717902,0.00011668,2]
[421293520,1777374640620,-1045.2534097,0.00011701,2]
[421293521,1777374640630,-2955.6185525,0.00011701,2]
[421293522,1777374640639,-2294.927032,0.00011701,2]
[421293523,1777374640649,-681.3868991,0.00011701,2]
[421293524,1777374640658,-173.0816856,0.00011701,2]
[421293525,1777374640667,-927.0,0.00011702,5]
[421293526,1777374640676,-977.0,0.00011702,5]
[421293527,1777374640686,-500.0,0.0001171,2]
[421293528,1777374640695,-1512.08005573,0.00011768,2]
[421293529,1777374640705,-1500.0,0.00011768,2]
[421293530,1777374640714,-1500.0,0.00011768,2]
[421293531,1777374640723,-719.28320637,0.00011768,2]
[421293532,1777374640733,-1500.0,0.00011768,2]
[421293533,1777374640742,-1500.0,0.00011768,2]
[421293534,1777374640752,-1308307.73529619,0.0001182,2]
[421293535,1777374640768,-922.18333418,0.0001182,2]
[421293536,1777374640779,-12848.00941468,0.0001182,2]
[421293560,1777374643786,-2.49877088,0.0001182,2]
[421293561,1777374646146,-285031.00505256,0.0001182,2]
[421293562,1777374646548,-1468.70986151,0.0001182,2]
[421293563,1777374646600,-16000.451,0.0001182,2]
[421293564,1777374646611,-4343.6612253,0.0001182,2]
[421293629,1777375832068,-257.0,8.219e-05,2]
[421293630,1777375832078,-280.0,8.219e-05,2]
[421293631,1777375832088,-20.22235369,9.041e-05,2]
[421293632,1777375832287,-145.54300479,9.041e-05,2]
[421293633,1777375832297,-277.12766623,9.88e-05,2]
[421293634,1777375832306,-13539.4989,9.999e-05,2]
[421293635,1777375832315,-439.0,9.999e-05,2]
[421293636,1777375832325,-300.0,9.999e-05,2]
[421293637,1777375832334,-300.0,9.999e-05,2]
[421293638,1777375832343,-1200.0,9.999e-05,2]
[421293639,1777375832353,-23121.29840036,0.0001,2]
[421293640,1777375832362,-200.0,0.00010093,2]
[421293641,1777375832372,-500.0,0.00010098,2]
[421293642,1777375832381,-500.0,0.00010098,2]
[421293643,1777375832391,-500.0,0.00010098,2]
[421293644,1777375832400,-500.0,0.00010098,2]
[421293645,1777375832410,-500.0,0.00010098,2]
[421293646,1777375832420,-500.0,0.00010098,2]
[421293647,1777375832429,-500.0,0.00010098,2]
[421293648,1777375832439,-500.0,0.00010098,2]
[421293649,1777375832448,-500.0,0.00010098,2]
[421293650,1777375832458,-500.0,0.00010098,2]
[421293651,1777375832468,-500.0,0.00010098,2]
[421293652,1777375832477,-500.0,0.00010098,2]
[421293653,1777375832487,-500.0,0.00010098,2]
[421293654,1777375832496,-500.0,0.00010098,2]
[421293655,1777375832506,-174.10372793,0.00010098,2]
[421293656,1777375832515,-190.47,0.00010098,2]
[421293658,1777375832525,-150.0,0.00010098,2]
[421293660,1777375832534,-190.47,0.00010372,2]
[421293662,1777375832544,-500.0,0.00010384,2]
[421293664,1777375832553,-200.0,0.00010641,2]
[421293666,1777375832563,-190.47,0.00010646,2]
[421293668,1777375832572,-411.0,0.00010655,2]
[421293671,1777375832582,-1502.63,0.00010792,2]
[421293674,1777375832591,-7432.76,0.00010792,2]
[421293675,1777375832600,-150.0,0.000108,2]
[421293676,1777375832610,-150.0,0.000108,2]
[421293677,1777375832619,-150.0,0.000108,2]
[421293678,1777375832629,-150.0,0.000108,2]
[421293679,1777375832641,-500.0,0.00010958,2]
[421293680,1777375832651,-500.0,0.00010958,2]
[421293681,1777375832662,-1680.0,0.00010999,2]
[421293682,1777375832672,-578.20924308,0.00011073,2]
[421293683,1777375832682,-151.0,0.00011073,2]
[421293684,1777375832692,-963.37881611,0.00011099,2]
[421293685,1777375832701,-963.37881604,0.00011099,2]
[421293686,1777375832710,-963.37881604,0.00011099,2]
[421293687,1777375832720,-963.37881604,0.00011099,2]
[421293688,1777375832729,-963.37881604,0.00011099,2]
[421293689,1777375832739,-255.0,0.00011108,2]
[421293690,1777375832748,-500.0,0.00011177,2]
[421293691,1777375832758,-500.0,0.00011177,2]
[421293692,1777375832767,-500.0,0.00011177,2]
[421293693,1777375832776,-500.0,0.00011177,2]
[421293694,1777375832786,-537.88183946,0.00011177,2]
[421293695,1777375832796,-150.0,0.00011177,2]
[421293696,1777375832805,-150.0,0.00011177,2]
[421293697,1777375832814,-150.0,0.00011177,2]
[421293698,1777375832824,-210.68312372,0.00011177,2]
[421293699,1777375832833,-150.0,0.00011177,2]
[421293701,1777375832843,-150.0,0.00011177,2]
[421293703,1777375832852,-150.0,0.00011177,2]
[421293705,1777375832862,-200.0,0.00011177,2]
[421293707,1777375832871,-200.0,0.00011177,2]
[421293709,1777375832881,-150.0,0.00011177,2]
[421293710,1777375832890,-963.37881604,0.00011182,2]
[421293711,1777375832899,-500.0,0.00011276,2]
[421293712,1777375832908,-500.0,0.00011276,2]
[421293713,1777375832918,-500.0,0.00011276,2]
[421293714,1777375832927,-500.0,0.00011276,2]
[421293715,1777375832937,-500.0,0.00011276,2]
[421293716,1777375832946,-500.0,0.00011276,2]
[421293717,1777375832956,-500.0,0.00011276,2]
[421293718,1777375832965,-500.0,0.00011276,2]
[421293719,1777375832975,-500.0,0.00011276,2]
[421293720,1777375832984,-500.0,0.00011276,2]
[421293721,1777375832993,-500.0,0.00011276,2]
[421293722,1777375833002,-258.642693,0.00011276,2]
[421293723,1777375833011,-963.37881604,0.00011361,2]
[421293724,1777375833021,-500.0,0.000114,2]
[421293725,1777375833030,-150.0,0.00011451,2]
[421293726,1777375833040,-150.0,0.00011451,2]
[421293727,1777375833049,-261.0066596,0.00011451,2]
[421293728,1777375833058,-163.23110827,0.00011451,2]
[421293729,1777375833067,-800.14,0.000115,2]
[421293730,1777375833076,-6035.0,0.000115,2]
[421293731,1777375833085,-927.0,0.000115,2]
[421293732,1777375833095,-963.37881604,0.00011541,2]
[421293733,1777375833104,-156.587,0.00011621,2]
[421293734,1777375833113,-2602.342,0.0001164,2]
[421293735,1777375833122,-157.897,0.0001164,2]
[421293736,1777375833132,-766.28024199,0.000117,2]
[421293737,1777375833142,-1728.36281633,0.000117,2]
[421293738,1777375833152,-152.85140024,0.000117,2]
[421293739,1777375833162,-5000.0,0.00011706,2]
[421293740,1777375833172,-1466.55251043,0.00011711,2]
[421293741,1777375833184,-963.37881604,0.0001172,2]
[421293742,1777375833194,-751.41177729,0.0001176,2]
[421293743,1777375833203,-500.0,0.00011805,2]
[421293744,1777375833214,-276.44389066,0.00011805,2]
[421293745,1777375833223,-500.0,0.00011805,2]
[421293746,1777375833233,-194.06462629,0.00011805,2]
[421293747,1777375833243,-500.0,0.00011805,2]
[421293748,1777375833252,-500.0,0.00011805,2]
[421293749,1777375833262,-810.0,0.00011805,5]
[421293750,1777375833271,-250.0,0.00011805,2]
[421293751,1777375833281,-1466.55251042,0.00011806,2]
[421293752,1777375833290,-174571.96847274,0.00011806,2]
[421293753,1777375833303,-27126.33308329,0.00011806,2]
[421293760,1777375838273,-336.2612,0.0001176,2]
[421293761,1777375838328,-164.67998486,0.0001176,2]
[421293762,1777375838338,-167.81726453,0.00011806,2]
[421293763,1777375838350,-288.79999814,0.00011806,2]
[421293764,1777375838490,-1682.20121288,0.00011806,2]
[421293765,1777375838502,-496.39233885,0.00011806,2]
[421293766,1777375838546,-250095.23672957,0.00011806,2]
[421293767,1777375838556,-200.0,0.00011811,2]
[421293768,1777375838566,-23674.6446803,0.00011811,2]
[421293769,1777375838576,-1861444.09342655,0.0001182,2]